[Event "*** SCC Grand Prix: Titled Tuesday Blitz"]
[Site "Chess.com"]
[Date "2020.07.14"]
[Round "9"]
[White "aloe_normansen"]
[Black "LilRag"]
[Result "1/2-1/2"]
[WhiteElo "2255"]
[BlackElo "2502"]
[TimeControl "180+1"]
[EndTime "11:47:24 PDT"]
[Termination "Game drawn by agreement"]

1. e4 {[%clk 0:03:00.9]} 1... c5 {[%clk 0:02:59.8]} 2. Nf3 {[%clk 0:03:00.8]}
2... e6 {[%clk 0:03:00.1]} 3. d4 {[%clk 0:03:01]} 3... cxd4 {[%clk 0:03:00.1]}
4. Nxd4 {[%clk 0:03:01.9]} 4... a6 {[%clk 0:03:00]} 5. Nc3 {[%clk 0:03:01.9]}
5... Qc7 {[%clk 0:02:59.9]} 6. g3 {[%clk 0:03:01.7]} 6... Nf6 {[%clk 0:02:59.2]}
7. Bg2 {[%clk 0:03:01.9]} 7... Nc6 {[%clk 0:02:58.2]} 8. O-O {[%clk 0:03:01.5]}
8... Be7 {[%clk 0:02:56.3]} 9. Kh1 {[%clk 0:03:01.3]} 9... O-O {[%clk
0:02:56.6]} 10. f4 {[%clk 0:03:01.3]} 10... d6 {[%clk 0:02:57.1]} 11. Be3 {[%clk
0:03:00.9]} 11... Bd7 {[%clk 0:02:56.7]} 12. g4 {[%clk 0:03:00.8]} 12... Nxd4
{[%clk 0:02:52.2]} 13. Bxd4 {[%clk 0:03:01.7]} 13... e5 {[%clk 0:02:52.5]} 14.
g5 {[%clk 0:02:49.4]} 14... exd4 {[%clk 0:02:51]} 15. gxf6 {[%clk 0:02:48.8]}
15... dxc3 {[%clk 0:02:49.7]} 16. fxe7 {[%clk 0:02:47.3]} 16... Rfe8 {[%clk
0:02:50.1]} 17. bxc3 {[%clk 0:02:43]} 17... Rxe7 {[%clk 0:02:50.5]} 18. Qd4
{[%clk 0:02:42]} 18... Bc6 {[%clk 0:02:46.8]} 19. Rad1 {[%clk 0:02:39.8]} 19...
Rd8 {[%clk 0:02:39.6]} 20. e5 {[%clk 0:02:33.8]} 20... Bxg2+ {[%clk 0:02:38.6]}
21. Kxg2 {[%clk 0:02:34.7]} 21... Red7 {[%clk 0:02:29.5]} 22. Qe3 {[%clk
0:02:01.7]} 22... dxe5 {[%clk 0:02:20.2]} 23. Rxd7 {[%clk 0:02:00.5]} 23... Qxd7
{[%clk 0:02:17.4]} 24. fxe5 {[%clk 0:01:56.6]} 24... h6 {[%clk 0:02:12.8]} 25.
Qf3 {[%clk 0:01:49.8]} 25... Rf8 {[%clk 0:02:03.8]} 26. c4 {[%clk 0:01:39.6]}
26... Qe6 {[%clk 0:01:41.5]} 27. Qd5 {[%clk 0:01:32.2]} 27... Qg6+ {[%clk
0:01:39.8]} 28. Kh1 {[%clk 0:01:31.2]} 28... Re8 {[%clk 0:01:19]} 29. c5 {[%clk
0:01:23.3]} 29... Qc6 {[%clk 0:00:59.3]} 30. Qxc6 {[%clk 0:00:54.2]} 30... bxc6
{[%clk 0:00:58.3]} 31. Re1 {[%clk 0:00:54.2]} 31... Re6 {[%clk 0:00:58.1]} 32.
Kg2 {[%clk 0:00:45.1]} 32... f6 {[%clk 0:00:58]} 33. Kf3 {[%clk 0:00:45]} 33...
Kf7 {[%clk 0:00:43.3]} 34. Kf4 {[%clk 0:00:36.2]} 34... g5+ {[%clk 0:00:32.6]}
35. Kf5 {[%clk 0:00:33.9]} 35... h5 {[%clk 0:00:29.6]} 36. Re4 {[%clk
0:00:30.1]} 36... g4 {[%clk 0:00:22.9]} 37. a4 {[%clk 0:00:20.4]} 37... a5
{[%clk 0:00:21.8]} 38. c3 {[%clk 0:00:19.7]} 38... Rxe5+ {[%clk 0:00:19.8]} 39.
Rxe5 {[%clk 0:00:19.7]} 39... fxe5 {[%clk 0:00:20.4]} 40. Kxe5 {[%clk
0:00:20.2]} 40... h4 {[%clk 0:00:20.8]} 41. Kf4 {[%clk 0:00:19.7]} 41... g3
{[%clk 0:00:21.3]} 42. hxg3 {[%clk 0:00:19.4]} 42... hxg3 {[%clk 0:00:21.9]} 43.
Kxg3 {[%clk 0:00:19.9]} 43... Ke6 {[%clk 0:00:22.3]} 44. Kf4 {[%clk 0:00:20.4]}
44... Kd5 {[%clk 0:00:22.5]} 45. Ke3 {[%clk 0:00:20.7]} 45... Kxc5 {[%clk
0:00:22.8]} 46. Kd3 {[%clk 0:00:21.2]} 46... Kd5 {[%clk 0:00:23.2]} 47. c4+
{[%clk 0:00:21.4]} 47... Kc5 {[%clk 0:00:21.3]} 48. Kc3 {[%clk 0:00:21.4]} 48...
Kd6 {[%clk 0:00:21.3]} 49. Kd4 {[%clk 0:00:21.5]} 49... c5+ {[%clk 0:00:21.7]}
50. Ke4 {[%clk 0:00:21.7]} 50... Ke6 {[%clk 0:00:22.2]} 51. Kf4 {[%clk 0:00:22]}
51... Kf6 {[%clk 0:00:22.3]} 1/2-1/2

[Event "*** SCC Grand Prix: Titled Tuesday Blitz"]
[Site "Chess.com"]
[Date "2020.07.14"]
[Round "9"]
[White "Rish_97"]
[Black "thedjoker98"]
[Result "0-1"]
[WhiteElo "2666"]
[BlackElo "2533"]
[TimeControl "180+1"]
[EndTime "11:47:25 PDT"]
[Termination "thedjoker98 won by resignation"]

1. Nf3 {[%clk 0:03:00.9]} 1... d5 {[%clk 0:03:00]} 2. g3 {[%clk 0:02:59.9]} 2...
c6 {[%clk 0:02:59.3]} 3. Bg2 {[%clk 0:02:59.6]} 3... Nf6 {[%clk 0:03:00.2]} 4.
c4 {[%clk 0:02:56.7]} 4... Bg4 {[%clk 0:02:59.7]} 5. Ne5 {[%clk 0:02:53.4]} 5...
Be6 {[%clk 0:02:59.5]} 6. cxd5 {[%clk 0:02:53.4]} 6... Bxd5 {[%clk 0:03:00.4]}
7. Nf3 {[%clk 0:02:54]} 7... c5 {[%clk 0:02:59.1]} 8. Nc3 {[%clk 0:02:53.5]}
8... Bc6 {[%clk 0:02:59.4]} 9. d3 {[%clk 0:02:53]} 9... e6 {[%clk 0:02:58.4]}
10. O-O {[%clk 0:02:53.3]} 10... Be7 {[%clk 0:02:58.4]} 11. e4 {[%clk
0:02:53.8]} 11... Nbd7 {[%clk 0:02:58.3]} 12. Qe2 {[%clk 0:02:53.3]} 12... O-O
{[%clk 0:02:57.5]} 13. h3 {[%clk 0:02:53.8]} 13... b5 {[%clk 0:02:54.9]} 14. a4
{[%clk 0:02:43.5]} 14... b4 {[%clk 0:02:52.9]} 15. Nb1 {[%clk 0:02:43.1]} 15...
c4 {[%clk 0:02:48.2]} 16. dxc4 {[%clk 0:02:27]} 16... Bxe4 {[%clk 0:02:47.8]}
17. Rd1 {[%clk 0:02:20.7]} 17... Qc8 {[%clk 0:02:44.2]} 18. Nbd2 {[%clk
0:02:15]} 18... Bc6 {[%clk 0:02:44.1]} 19. b3 {[%clk 0:02:11.3]} 19... Nc5
{[%clk 0:02:43.5]} 20. Bb2 {[%clk 0:02:11.7]} 20... Rd8 {[%clk 0:02:43.6]} 21.
Nd4 {[%clk 0:02:10.1]} 21... Bxg2 {[%clk 0:02:43.3]} 22. Kxg2 {[%clk 0:02:11]}
22... Qb7+ {[%clk 0:02:43.4]} 23. Qf3 {[%clk 0:02:09.8]} 23... Qxf3+ {[%clk
0:02:42.5]} 24. N2xf3 {[%clk 0:02:10.7]} 24... Nfe4 {[%clk 0:02:38.5]} 25. Nc6
{[%clk 0:01:11.1]} 25... Rxd1 {[%clk 0:02:37.4]} 26. Rxd1 {[%clk 0:01:12]} 26...
Bf6 {[%clk 0:02:37.1]} 27. Bxf6 {[%clk 0:01:10.5]} 27... gxf6 {[%clk 0:02:38]}
28. Nfd4 {[%clk 0:00:59.4]} 28... a5 {[%clk 0:02:25.2]} 29. Nb5 {[%clk
0:00:32.5]} 29... Nxb3 {[%clk 0:02:16.1]} 30. Nc7 {[%clk 0:00:31.3]} 30... Rf8
{[%clk 0:02:14.2]} 31. Na6 {[%clk 0:00:23]} 31... Nbc5 {[%clk 0:02:11.8]} 32.
Nxc5 {[%clk 0:00:22.7]} 32... Nxc5 {[%clk 0:02:12.7]} 33. Nxa5 {[%clk
0:00:21.6]} 33... Nxa4 {[%clk 0:02:12.7]} 34. Rb1 {[%clk 0:00:20.8]} 34... Rc8
{[%clk 0:01:57.3]} 35. Rxb4 {[%clk 0:00:20.6]} 35... Nc5 {[%clk 0:01:57.1]} 36.
Rb5 {[%clk 0:00:19.9]} 36... Nd3 {[%clk 0:01:56.3]} 37. Rb3 {[%clk 0:00:16.8]}
37... Ne5 {[%clk 0:01:51.8]} 38. Rc3 {[%clk 0:00:17]} 38... Rc5 {[%clk
0:01:51.6]} 39. Nb3 {[%clk 0:00:16.2]} 39... Rxc4 {[%clk 0:01:51.6]} 40. Rxc4
{[%clk 0:00:16.7]} 40... Nxc4 {[%clk 0:01:52.5]} 41. Nd4 {[%clk 0:00:16.1]}
41... f5 {[%clk 0:01:52.2]} 42. Ne2 {[%clk 0:00:13.9]} 42... Kg7 {[%clk
0:01:51.9]} 43. h4 {[%clk 0:00:13.9]} 43... Kf6 {[%clk 0:01:52.1]} 44. Nf4
{[%clk 0:00:14.4]} 44... Ne5 {[%clk 0:01:52.1]} 45. Ne2 {[%clk 0:00:14.4]} 45...
Nd3 {[%clk 0:01:51.6]} 46. Nd4 {[%clk 0:00:14.4]} 46... Ke5 {[%clk 0:01:51.2]}
47. Nf3+ {[%clk 0:00:14.6]} 47... Kf6 {[%clk 0:01:51.1]} 48. Nd4 {[%clk
0:00:13.6]} 48... h6 {[%clk 0:01:51.3]} 49. Ne2 {[%clk 0:00:13.2]} 49... Ke5
{[%clk 0:01:51.1]} 50. Nc3 {[%clk 0:00:13.6]} 50... Nc1 {[%clk 0:01:47.9]} 51.
Nd1 {[%clk 0:00:12.8]} 51... Ke4 {[%clk 0:01:46.5]} 52. Ne3 {[%clk 0:00:12.6]}
52... Nd3 {[%clk 0:01:42.6]} 53. Nc4 {[%clk 0:00:12.1]} 53... Ne5 {[%clk
0:01:36.2]} 54. Nd6+ {[%clk 0:00:11.7]} 54... Kd5 {[%clk 0:01:35.6]} 55. Ne8
{[%clk 0:00:12]} 55... Nd7 {[%clk 0:01:31.3]} 56. Kf3 {[%clk 0:00:10.9]} 56...
Ke5 {[%clk 0:01:30.5]} 57. Ng7 {[%clk 0:00:10]} 57... Nf6 {[%clk 0:01:28.5]} 58.
Ke3 {[%clk 0:00:09.1]} 58... Kd6 {[%clk 0:01:28.3]} 59. Kf4 {[%clk 0:00:08.5]}
59... Ke7 {[%clk 0:01:27.5]} 60. f3 {[%clk 0:00:04.7]} 60... Kf8 {[%clk
0:01:26]} 61. Nxf5 {[%clk 0:00:03.1]} 61... exf5 {[%clk 0:01:26.9]} 62. Kxf5
{[%clk 0:00:04]} 62... Kg7 {[%clk 0:01:24.9]} 63. g4 {[%clk 0:00:04.2]} 63...
Ng8 {[%clk 0:01:22.8]} 64. g5 {[%clk 0:00:04.2]} 64... Ne7+ {[%clk 0:01:22.8]}
65. Ke5 {[%clk 0:00:04.1]} 65... Ng6+ {[%clk 0:01:21.5]} 66. Kf5 {[%clk
0:00:03.5]} 66... Nxh4+ {[%clk 0:01:20.8]} 67. Kg4 {[%clk 0:00:04.4]} 67... hxg5
{[%clk 0:01:20.8]} 68. Kxg5 {[%clk 0:00:04.9]} 68... Nxf3+ {[%clk 0:01:20.8]}
69. Kf4 {[%clk 0:00:05.8]} 0-1

[Event "*** SCC Grand Prix: Titled Tuesday Blitz"]
[Site "Chess.com"]
[Date "2020.07.14"]
[Round "9"]
[White "deribas12345"]
[Black "penguingm1"]
[Result "0-1"]
[WhiteElo "2645"]
[BlackElo "2958"]
[TimeControl "180+1"]
[EndTime "11:47:27 PDT"]
[Termination "penguingm1 won by resignation"]

1. d4 {[%clk 0:03:00.9]} 1... d5 {[%clk 0:02:59.4]} 2. c4 {[%clk 0:03:01]} 2...
e6 {[%clk 0:02:59.6]} 3. Nc3 {[%clk 0:03:01.2]} 3... Be7 {[%clk 0:02:59.5]} 4.
cxd5 {[%clk 0:03:01.1]} 4... exd5 {[%clk 0:03:00.4]} 5. Nf3 {[%clk 0:03:01.5]}
5... c6 {[%clk 0:03:00.7]} 6. Bf4 {[%clk 0:03:01.4]} 6... Bf5 {[%clk 0:03:01.3]}
7. e3 {[%clk 0:03:01.2]} 7... Nf6 {[%clk 0:03:01]} 8. Bd3 {[%clk 0:03:01.2]}
8... Bxd3 {[%clk 0:03:01.2]} 9. Qxd3 {[%clk 0:03:02.1]} 9... O-O {[%clk
0:03:00.3]} 10. O-O {[%clk 0:03:02.1]} 10... Nh5 {[%clk 0:02:51.6]} 11. Be5
{[%clk 0:02:57]} 11... Nd7 {[%clk 0:02:51.2]} 12. Rad1 {[%clk 0:02:46.7]} 12...
Re8 {[%clk 0:02:39.4]} 13. a3 {[%clk 0:02:26]} 13... a5 {[%clk 0:02:38]} 14. Bg3
{[%clk 0:02:23.4]} 14... Nxg3 {[%clk 0:02:24.3]} 15. hxg3 {[%clk 0:02:24.3]}
15... Nf6 {[%clk 0:02:23]} 16. Qf5 {[%clk 0:02:03.8]} 16... Bd6 {[%clk
0:02:17.5]} 17. Rfe1 {[%clk 0:01:57.7]} 17... Qb6 {[%clk 0:02:13.7]} 18. Re2
{[%clk 0:01:56.5]} 18... Re7 {[%clk 0:02:10.3]} 19. g4 {[%clk 0:01:55.7]} 19...
Rae8 {[%clk 0:02:06.7]} 20. g5 {[%clk 0:01:47.6]} 20... Ne4 {[%clk 0:02:06.9]}
21. Nxe4 {[%clk 0:01:47]} 21... Rxe4 {[%clk 0:02:06.1]} 22. g3 {[%clk
0:01:38.2]} 22... Qd8 {[%clk 0:01:51.6]} 23. Kg2 {[%clk 0:01:34.1]} 23... Qc8
{[%clk 0:01:26.7]} 24. Qxc8 {[%clk 0:01:33.4]} 24... Rxc8 {[%clk 0:01:27.6]} 25.
b4 {[%clk 0:01:22.4]} 25... Ra8 {[%clk 0:01:04]} 26. Rb1 {[%clk 0:01:11.6]}
26... Re7 {[%clk 0:00:59.5]} 27. Rc2 {[%clk 0:00:55]} 27... Rc7 {[%clk
0:00:55.9]} 28. Ne1 {[%clk 0:00:53.9]} 28... axb4 {[%clk 0:00:39]} 29. axb4
{[%clk 0:00:54.8]} 29... Ra3 {[%clk 0:00:32.8]} 30. b5 {[%clk 0:00:45.3]} 30...
Ra5 {[%clk 0:00:29.8]} 31. bxc6 {[%clk 0:00:43]} 31... bxc6 {[%clk 0:00:23]} 32.
Rb8+ {[%clk 0:00:39]} 32... Bf8 {[%clk 0:00:23.2]} 33. Nd3 {[%clk 0:00:39]}
33... g6 {[%clk 0:00:20.9]} 34. Nb4 {[%clk 0:00:27.1]} 34... Kg7 {[%clk
0:00:13]} 35. Rxc6 {[%clk 0:00:26.7]} 35... Rxc6 {[%clk 0:00:07.4]} 36. Nxc6
{[%clk 0:00:27.6]} 36... Ra6 {[%clk 0:00:07.4]} 37. Ne5 {[%clk 0:00:27.1]} 37...
Bd6 {[%clk 0:00:06.9]} 38. Nd7 {[%clk 0:00:26.2]} 38... Bxb8 {[%clk 0:00:06.5]}
39. Nxb8 {[%clk 0:00:25.8]} 39... Rd6 {[%clk 0:00:07.1]} 40. f4 {[%clk
0:00:24.5]} 40... Kf8 {[%clk 0:00:07.3]} 41. Kf3 {[%clk 0:00:24.7]} 41... Ke8
{[%clk 0:00:07.8]} 42. e4 {[%clk 0:00:25.4]} 42... Rb6 {[%clk 0:00:04.4]} 43.
exd5 {[%clk 0:00:23.3]} 43... Rxb8 {[%clk 0:00:04.6]} 44. Ke4 {[%clk 0:00:24.2]}
44... Rb6 {[%clk 0:00:05]} 45. g4 {[%clk 0:00:24.6]} 45... Ke7 {[%clk
0:00:05.6]} 46. f5 {[%clk 0:00:24.5]} 46... Kd6 {[%clk 0:00:05.9]} 47. fxg6
{[%clk 0:00:23.2]} 47... hxg6 {[%clk 0:00:06.8]} 48. Kf4 {[%clk 0:00:24]} 48...
Kxd5 {[%clk 0:00:07.4]} 49. Kg3 {[%clk 0:00:24.3]} 49... Kxd4 {[%clk 0:00:07.6]}
50. Kh4 {[%clk 0:00:25.2]} 50... Ke4 {[%clk 0:00:08.1]} 51. Kg3 {[%clk
0:00:25.4]} 51... Ke3 {[%clk 0:00:08.6]} 52. Kh4 {[%clk 0:00:26.3]} 52... Kf4
{[%clk 0:00:09.1]} 53. Kh3 {[%clk 0:00:26.5]} 53... Kxg5 {[%clk 0:00:09.7]} 0-1

[Event "*** SCC Grand Prix: Titled Tuesday Blitz"]
[Site "Chess.com"]
[Date "2020.07.14"]
[Round "9"]
[White "WelshTiger"]
[Black "brunoo2003"]
[Result "0-1"]
[WhiteElo "2356"]
[BlackElo "2291"]
[TimeControl "180+1"]
[EndTime "11:47:27 PDT"]
[Termination "brunoo2003 won by checkmate"]

1. e4 {[%clk 0:03:00.9]} 1... c5 {[%clk 0:02:58.9]} 2. Nf3 {[%clk 0:03:00.4]}
2... Nc6 {[%clk 0:02:59.2]} 3. Bb5 {[%clk 0:03:00.2]} 3... g6 {[%clk 0:02:58.5]}
4. Bxc6 {[%clk 0:03:00.4]} 4... dxc6 {[%clk 0:02:59.4]} 5. h3 {[%clk 0:03:00.7]}
5... Bg7 {[%clk 0:02:59.9]} 6. d3 {[%clk 0:02:59.9]} 6... Nf6 {[%clk 0:03:00.4]}
7. Nc3 {[%clk 0:02:59.6]} 7... Nd7 {[%clk 0:03:00.9]} 8. Be3 {[%clk 0:02:59.8]}
8... e5 {[%clk 0:03:00.7]} 9. Qd2 {[%clk 0:03:00.4]} 9... h6 {[%clk 0:03:00.1]}
10. Nh2 {[%clk 0:03:00.5]} 10... Qe7 {[%clk 0:03:00.1]} 11. f4 {[%clk
0:02:59.3]} 11... exf4 {[%clk 0:03:01]} 12. Bxf4 {[%clk 0:02:59.4]} 12... Nf8
{[%clk 0:03:01.4]} 13. O-O {[%clk 0:02:57.5]} 13... g5 {[%clk 0:02:53.7]} 14.
Bg3 {[%clk 0:02:57.2]} 14... Be6 {[%clk 0:02:52.5]} 15. Rae1 {[%clk 0:02:56.1]}
15... Nd7 {[%clk 0:02:52.2]} 16. Nd5 {[%clk 0:02:55.5]} 16... cxd5 {[%clk
0:02:48.8]} 17. exd5 {[%clk 0:02:55.6]} 17... O-O {[%clk 0:02:40.7]} 18. dxe6
{[%clk 0:02:55]} 18... fxe6 {[%clk 0:02:41.6]} 19. Rxf8+ {[%clk 0:02:44.1]}
19... Rxf8 {[%clk 0:02:40.3]} 20. b3 {[%clk 0:02:38.5]} 20... Bd4+ {[%clk
0:02:25.5]} 21. Kh1 {[%clk 0:02:37.9]} 21... Qf6 {[%clk 0:02:26]} 22. Nf3 {[%clk
0:02:35.7]} 22... Bc3 {[%clk 0:02:25.1]} 23. Qe2 {[%clk 0:02:22.3]} 23... Bxe1
{[%clk 0:02:24.5]} 24. Qxe1 {[%clk 0:02:22.6]} 24... Re8 {[%clk 0:02:16.5]} 25.
Qe4 {[%clk 0:02:22]} 25... b6 {[%clk 0:02:12.5]} 26. Qc6 {[%clk 0:02:21.3]}
26... Qe7 {[%clk 0:02:00.3]} 27. Bd6 {[%clk 0:02:17.8]} 27... Qf7 {[%clk
0:01:57.7]} 28. a4 {[%clk 0:02:14.9]} 28... e5 {[%clk 0:01:52]} 29. Nd2 {[%clk
0:02:02.5]} 29... Nf6 {[%clk 0:01:27.9]} 30. Nc4 {[%clk 0:01:56.6]} 30... e4
{[%clk 0:01:23.2]} 31. Be5 {[%clk 0:01:46.5]} 31... exd3 {[%clk 0:01:15.6]} 32.
cxd3 {[%clk 0:01:44.1]} 32... Re6 {[%clk 0:01:04.6]} 33. Qa8+ {[%clk 0:01:36.4]}
33... Re8 {[%clk 0:00:56.1]} 34. Qc6 {[%clk 0:01:33.6]} 34... Re6 {[%clk
0:00:54.1]} 35. Qa8+ {[%clk 0:01:33]} 35... Qe8 {[%clk 0:00:52.5]} 36. Qxa7
{[%clk 0:01:32.7]} 36... Rxe5 {[%clk 0:00:45.7]} 37. Nxe5 {[%clk 0:01:28.9]}
37... Qxe5 {[%clk 0:00:46.6]} 38. Qxb6 {[%clk 0:01:29.1]} 38... g4 {[%clk
0:00:45]} 39. Qd8+ {[%clk 0:01:23]} 39... Kg7 {[%clk 0:00:24.7]} 40. hxg4 {[%clk
0:01:09.9]} 40... Kg6 {[%clk 0:00:22.1]} 41. Qc8 {[%clk 0:01:02.1]} 41... Qe1+
{[%clk 0:00:19.2]} 42. Kh2 {[%clk 0:01:02.3]} 42... Qe5+ {[%clk 0:00:19.4]} 43.
Kh1 {[%clk 0:01:00.7]} 43... Kg5 {[%clk 0:00:18.7]} 44. Qf5+ {[%clk 0:00:46.4]}
44... Qxf5 {[%clk 0:00:18.9]} 45. gxf5 {[%clk 0:00:47.3]} 45... Kxf5 {[%clk
0:00:19.8]} 46. a5 {[%clk 0:00:46.9]} 46... Nd5 {[%clk 0:00:19.1]} 47. Kh2
{[%clk 0:00:46.4]} 47... Ke5 {[%clk 0:00:17.5]} 48. Kh3 {[%clk 0:00:46.3]} 48...
Kd4 {[%clk 0:00:18]} 49. Kh4 {[%clk 0:00:44.1]} 49... Kxd3 {[%clk 0:00:18.5]}
50. Kh5 {[%clk 0:00:43.3]} 50... Kc3 {[%clk 0:00:19.1]} 51. Kxh6 {[%clk
0:00:43.8]} 51... Kxb3 {[%clk 0:00:19.6]} 52. g4 {[%clk 0:00:44.2]} 52... c4
{[%clk 0:00:20.1]} 53. g5 {[%clk 0:00:44.2]} 53... c3 {[%clk 0:00:20.5]} 54. g6
{[%clk 0:00:44.8]} 54... c2 {[%clk 0:00:20.4]} 55. g7 {[%clk 0:00:44.9]} 55...
c1=Q+ {[%clk 0:00:20.9]} 56. Kh7 {[%clk 0:00:44.1]} 56... Ne7 {[%clk 0:00:17.4]}
57. a6 {[%clk 0:00:40]} 57... Qh1# {[%clk 0:00:16.5]} 0-1

[Event "*** SCC Grand Prix: Titled Tuesday Blitz"]
[Site "Chess.com"]
[Date "2020.07.14"]
[Round "9"]
[White "grandcoach"]
[Black "DishonorOnYourCow"]
[Result "0-1"]
[WhiteElo "2112"]
[BlackElo "2325"]
[TimeControl "180+1"]
[EndTime "11:47:27 PDT"]
[Termination "DishonorOnYourCow won on time"]

1. e4 {[%clk 0:03:00.9]} 1... e5 {[%clk 0:02:59]} 2. Nf3 {[%clk 0:02:54.1]} 2...
Nc6 {[%clk 0:02:58.6]} 3. d4 {[%clk 0:02:54.4]} 3... exd4 {[%clk 0:02:58.1]} 4.
c3 {[%clk 0:02:54.5]} 4... Nf6 {[%clk 0:02:54.4]} 5. e5 {[%clk 0:02:52.3]} 5...
Ne4 {[%clk 0:02:47.5]} 6. Qe2 {[%clk 0:02:50.9]} 6... Nc5 {[%clk 0:02:27]} 7.
cxd4 {[%clk 0:02:50.2]} 7... Ne6 {[%clk 0:02:19.2]} 8. d5 {[%clk 0:02:37.3]}
8... Ncd4 {[%clk 0:02:17.6]} 9. Nxd4 {[%clk 0:02:36.6]} 9... Nxd4 {[%clk
0:02:17]} 10. Qe4 {[%clk 0:02:29]} 10... c5 {[%clk 0:01:54.1]} 11. Nc3 {[%clk
0:02:15.6]} 11... g6 {[%clk 0:01:28.7]} 12. Bc4 {[%clk 0:01:59.1]} 12... Bg7
{[%clk 0:01:23]} 13. O-O {[%clk 0:01:57.3]} 13... O-O {[%clk 0:01:21.3]} 14. Be3
{[%clk 0:01:55]} 14... Re8 {[%clk 0:00:53.7]} 15. f4 {[%clk 0:01:49.6]} 15... d6
{[%clk 0:00:52]} 16. Bxd4 {[%clk 0:01:23.1]} 16... cxd4 {[%clk 0:00:51.1]} 17.
Qxd4 {[%clk 0:01:20.5]} 17... dxe5 {[%clk 0:00:51.2]} 18. fxe5 {[%clk
0:01:18.9]} 18... Bxe5 {[%clk 0:00:52.1]} 19. Qf2 {[%clk 0:01:08.5]} 19... Qb6
{[%clk 0:00:51.3]} 20. Rae1 {[%clk 0:01:01.8]} 20... Bd4 {[%clk 0:00:43.6]} 21.
Rxe8+ {[%clk 0:00:58.3]} 21... Kg7 {[%clk 0:00:43.5]} 22. Re7 {[%clk 0:00:45.6]}
22... Bxf2+ {[%clk 0:00:40]} 23. Rxf2 {[%clk 0:00:45]} 23... Bf5 {[%clk
0:00:38.5]} 24. g4 {[%clk 0:00:38.1]} 24... Bxg4 {[%clk 0:00:20.1]} 25. Rxf7+
{[%clk 0:00:19.7]} 25... Kh6 {[%clk 0:00:19.8]} 26. Ne4 {[%clk 0:00:17]} 26...
Re8 {[%clk 0:00:18.6]} 27. Rxh7+ {[%clk 0:00:13.4]} 27... Kxh7 {[%clk
0:00:17.9]} 28. Nf6+ {[%clk 0:00:13.9]} 28... Kh6 {[%clk 0:00:15.5]} 29. Nxe8
{[%clk 0:00:13.8]} 29... Qe3 {[%clk 0:00:14.9]} 30. Bf1 {[%clk 0:00:11.2]} 30...
Qxe8 {[%clk 0:00:14.1]} 31. d6 {[%clk 0:00:11.1]} 31... Qd7 {[%clk 0:00:13.6]}
32. Rd2 {[%clk 0:00:10.8]} 32... Bf3 {[%clk 0:00:12.9]} 33. Bc4 {[%clk
0:00:08.9]} 33... Qg4+ {[%clk 0:00:08.7]} 34. Kf2 {[%clk 0:00:09.2]} 34... Bc6
{[%clk 0:00:06.2]} 35. Bf1 {[%clk 0:00:05.4]} 35... Qf4+ {[%clk 0:00:05.6]} 36.
Ke1 {[%clk 0:00:04.9]} 36... Qe3+ {[%clk 0:00:04.7]} 37. Be2 {[%clk 0:00:04.7]}
37... Bb5 {[%clk 0:00:04.1]} 38. d7 {[%clk 0:00:04.1]} 38... Bxd7 {[%clk
0:00:02.7]} 39. Rxd7 {[%clk 0:00:04]} 39... Qg1+ {[%clk 0:00:03.6]} 40. Kd2
{[%clk 0:00:03]} 40... Qxh2 {[%clk 0:00:04.1]} 0-1

[Event "*** SCC Grand Prix: Titled Tuesday Blitz"]
[Site "Chess.com"]
[Date "2020.07.14"]
[Round "9"]
[White "ChessicallyInclined"]
[Black "Dinamo81"]
[Result "0-1"]
[WhiteElo "2511"]
[BlackElo "2658"]
[TimeControl "180+1"]
[EndTime "11:47:29 PDT"]
[Termination "Dinamo81 won by resignation"]

1. d4 {[%clk 0:03:00.9]} 1... d5 {[%clk 0:02:59.8]} 2. c4 {[%clk 0:03:00.5]}
2... e6 {[%clk 0:03:00.2]} 3. Nc3 {[%clk 0:02:58.1]} 3... a6 {[%clk 0:03:00.6]}
4. cxd5 {[%clk 0:02:52.9]} 4... exd5 {[%clk 0:03:01.5]} 5. Qb3 {[%clk
0:02:53.1]} 5... Nc6 {[%clk 0:02:50.9]} 6. Nf3 {[%clk 0:02:37.6]} 6... Nge7
{[%clk 0:02:48.8]} 7. Bg5 {[%clk 0:02:30.7]} 7... f6 {[%clk 0:02:47.6]} 8. Bh4
{[%clk 0:02:30.5]} 8... g5 {[%clk 0:02:44.1]} 9. Bg3 {[%clk 0:02:27.8]} 9... g4
{[%clk 0:02:44.2]} 10. Nh4 {[%clk 0:02:19.6]} 10... Nxd4 {[%clk 0:02:44.3]} 11.
Qd1 {[%clk 0:02:19.5]} 11... Ndf5 {[%clk 0:02:08.7]} 12. e3 {[%clk 0:01:51.6]}
12... Nxh4 {[%clk 0:01:55.1]} 13. Bxh4 {[%clk 0:01:49.4]} 13... Ng6 {[%clk
0:01:51.3]} 14. Bg3 {[%clk 0:01:41.3]} 14... c6 {[%clk 0:01:50.4]} 15. Bd3
{[%clk 0:01:34.2]} 15... Bd6 {[%clk 0:01:40.8]} 16. Qc2 {[%clk 0:01:23.6]} 16...
Kf7 {[%clk 0:01:38.4]} 17. e4 {[%clk 0:01:18.5]} 17... d4 {[%clk 0:01:31.1]} 18.
Ne2 {[%clk 0:01:13.6]} 18... Be6 {[%clk 0:01:16.7]} 19. Bc4 {[%clk 0:00:54]}
19... Re8 {[%clk 0:00:57.5]} 20. Nxd4 {[%clk 0:00:52.1]} 20... Bb4+ {[%clk
0:00:55.7]} 21. Kf1 {[%clk 0:00:48.2]} 21... Qxd4 {[%clk 0:00:54.3]} 22. Bxe6+
{[%clk 0:00:48.5]} 22... Rxe6 {[%clk 0:00:51.7]} 23. Rd1 {[%clk 0:00:46.3]}
23... Qxe4 {[%clk 0:00:50.5]} 24. Rd7+ {[%clk 0:00:45]} 24... Ne7 {[%clk
0:00:43.9]} 25. Qxe4 {[%clk 0:00:39.4]} 25... Rxe4 {[%clk 0:00:42.5]} 26. f3
{[%clk 0:00:40.3]} 26... gxf3 {[%clk 0:00:37.6]} 27. gxf3 {[%clk 0:00:41.2]}
27... Re6 {[%clk 0:00:36.9]} 28. Rxb7 {[%clk 0:00:41.5]} 28... Bd6 {[%clk
0:00:33.7]} 29. Kf2 {[%clk 0:00:36]} 29... Rd8 {[%clk 0:00:32.2]} 30. Kg2 {[%clk
0:00:29.9]} 30... Bc5 {[%clk 0:00:28.7]} 31. Kh3 {[%clk 0:00:26.1]} 31... Rd2
{[%clk 0:00:27.9]} 32. Kg4 {[%clk 0:00:25.4]} 32... Bd4 {[%clk 0:00:27.4]} 33.
b3 {[%clk 0:00:24.5]} 33... c5 {[%clk 0:00:26.5]} 34. a4 {[%clk 0:00:24.2]}
34... Kg6 {[%clk 0:00:25.2]} 35. h4 {[%clk 0:00:21.6]} 35... h5+ {[%clk
0:00:25.7]} 36. Kh3 {[%clk 0:00:21.8]} 36... Nf5 {[%clk 0:00:26.1]} 37. Bf4
{[%clk 0:00:21.6]} 37... Rd3 {[%clk 0:00:26.6]} 38. Rf1 {[%clk 0:00:14.5]} 38...
Be3 {[%clk 0:00:17.1]} 39. Bb8 {[%clk 0:00:10.4]} 39... Nd4 {[%clk 0:00:13.2]}
40. Rc7 {[%clk 0:00:05.7]} 40... Nxb3 {[%clk 0:00:11.8]} 41. Rb7 {[%clk
0:00:03.6]} 41... Nd2 {[%clk 0:00:11.7]} 42. Rd1 {[%clk 0:00:03.5]} 42... c4
{[%clk 0:00:11.9]} 43. Ba7 {[%clk 0:00:02]} 43... Nxf3 {[%clk 0:00:11.2]} 44.
Rd2 {[%clk 0:00:01.1]} 44... Bxd2 {[%clk 0:00:10.8]} 0-1